bitfinex/quotes_BTCUSD_20250127
["timestamp","ask_amount","ask_price","bid_price","bid_amount"]
[1737963588214,0.16867659,98701.0,98700.0,0.002]
[1737963588657,0.16867659,98701.0,98700.0,0.004]
[1737963588914,0.151993,98689.0,98685.0,0.09734729]
[1737963589104,0.151977,98699.0,98685.0,0.09734729]
[1737963589266,0.0027431,98688.0,98685.0,0.24934529]
[1737963589459,0.202646,98695.0,98685.0,0.24934529]
[1737963589682,0.151988,98692.0,98685.0,0.24934529]
[1737963589911,0.0027431,98694.0,98685.0,0.09734729]
[1737963590115,0.02966438,98701.0,98685.0,0.09734729]
[1737963590293,0.23229838,98701.0,98688.0,0.151992]
[1737963590465,0.00273548,98700.0,98689.0,0.09734729]
[1737963590822,0.151978,98698.0,98692.0,0.151987]
[1737963590951,0.00273548,98700.0,98697.0,0.09734729]
[1737963591148,0.02866438,98701.0,98700.0,0.151975]
[1737963591388,0.02866438,98701.0,98700.0,0.09734729]
[1737963591586,0.02866438,98701.0,98685.0,0.001]
[1737963591794,0.151987,98693.0,98686.0,0.24734729]
[1737963591996,0.151987,98693.0,98692.0,0.005]
[1737963592641,0.02232642,98701.0,98692.0,0.10234729]
[1737963592842,0.15198,98697.0,98693.0,0.09734729]
[1737963593021,0.151977,98699.0,98693.0,0.09734729]
[1737963593223,0.02232642,98701.0,98694.0,0.151983]
[1737963593464,0.01457722,98696.0,98695.0,0.09734729]
[1737963593666,0.01457722,98696.0,98695.0,0.24933029]
[1737963594451,0.01457722,98696.0,98695.0,0.41513029]
[1737963594675,0.01457722,98696.0,98695.0,0.09734729]
[1737963594874,0.01457722,98696.0,98695.0,0.25133029]
[1737963595328,0.01457722,98696.0,98695.0,0.24933029]
[1737963595527,0.01457722,98696.0,98695.0,0.39933029]
[1737963595749,0.01457722,98696.0,98695.0,1.33305082]
[1737963595932,0.01457722,98696.0,98695.0,1.33105082]
[1737963596308,0.01457722,98696.0,98695.0,1.33405082]
[1737963597526,0.01457722,98696.0,98695.0,1.33105082]
[1737963597711,0.01457722,98696.0,98695.0,1.34605411]
[1737963598033,0.01643592,98696.0,98695.0,0.001]
[1737963598235,0.01916118,98696.0,98695.0,0.001]
[1737963598437,0.17114218,98696.0,98695.0,0.004]
[1737963598598,0.17114218,98696.0,98690.0,0.151991]
[1737963598813,0.151986,98694.0,98688.0,0.15]
[1737963599011,0.151986,98694.0,98688.0,0.39934029]
[1737963599418,0.01643592,98696.0,98695.0,0.002]
[1737963599616,0.17114218,98696.0,98695.0,0.002]
[1737963599820,0.151986,98693.0,98685.0,0.15]
[1737963600031,0.01408707,98701.0,98688.0,0.15]
[1737963600232,0.01408707,98701.0,98688.0,0.09734729]
[1737963600510,0.01457622,98696.0,98676.0,0.202682]
[1737963600709,0.01457622,98696.0,98677.0,0.09734729]
[1737963600862,0.01457622,98696.0,98688.0,0.00029736]
[1737963601059,0.01457622,98696.0,98695.0,0.151983]
[1737963601269,0.01457622,98696.0,98695.0,0.57755329]
[1737963601472,0.01457622,98696.0,98695.0,1.11459429]
[1737963601674,0.01457622,98696.0,98695.0,0.55027829]
[1737963602036,0.01457622,98696.0,98695.0,0.4306675]
[1737963602650,0.01457622,98696.0,98695.0,0.1286845]
[1737963602850,0.01457622,98696.0,98695.0,0.25233029]
[1737963603433,0.01457622,98696.0,98695.0,0.10034729]
[1737963603641,0.01457622,98696.0,98695.0,0.25233029]
[1737963604144,0.01457622,98696.0,98695.0,0.40233029]
[1737963604378,0.01457622,98696.0,98695.0,0.43366733]
[1737963604509,0.01457622,98696.0,98695.0,0.43766733]
[1737963604919,0.01457622,98696.0,98695.0,0.76253133]
[1737963605122,0.01457622,98696.0,98695.0,0.76653133]
[1737963605345,0.01457622,98696.0,98695.0,0.28666733]
[1737963605545,0.01457622,98696.0,98695.0,0.09734729]
[1737963605707,0.16655822,98696.0,98695.0,0.002]
[1737963605912,0.16655822,98696.0,98695.0,0.008]
[1737963606111,0.16820771,98696.0,98695.0,0.008]
[1737963606311,0.16820771,98696.0,98695.0,0.006]
[1737963606547,0.16820771,98696.0,98695.0,0.007]
[1737963606951,0.30130827,98696.0,98695.0,0.007]
[1737963607156,0.30130827,98696.0,98695.0,0.001]
[1737963607157,0.31127383,98696.0,98695.0,0.001]
[1737963607570,0.31127383,98696.0,98695.0,0.005]
[1737963607798,0.31127383,98696.0,98695.0,0.001]
[1737963607998,0.31127383,98696.0,98690.0,0.00015951]
[1737963607999,0.151989,98691.0,98690.0,0.00015951]
[1737963608199,0.202645,98695.0,98690.0,0.00015951]
[1737963608200,0.151984,98695.0,98690.0,0.00015951]
[1737963608402,0.151986,98694.0,98690.0,0.00015951]
[1737963608648,0.01822571,98696.0,98695.0,0.151983]
[1737963608782,0.01622571,98696.0,98695.0,0.39933029]
[1737963609231,0.01622571,98696.0,98695.0,1.11690229]
[1737963609607,0.01622571,98696.0,98695.0,0.90676742]
[1737963609830,0.00164949,98699.0,98698.0,0.301978]
[1737963609988,0.00164949,98699.0,98698.0,0.83457242]
[1737963610190,0.00164949,98699.0,98698.0,0.43066642]
[1737963610403,0.00164949,98699.0,98698.0,0.24932529]
[1737963610855,0.00164949,98699.0,98698.0,0.09734729]
[1737963611028,0.00164949,98699.0,98690.0,0.00015951]
[1737963611228,0.151989,98691.0,98690.0,0.00015951]
[1737963611482,0.00164949,98699.0,98690.0,0.0975068]
[1737963611688,0.00823808,98699.0,98698.0,0.310978]
[1737963611889,0.00823808,98699.0,98698.0,0.40832529]
[1737963612029,0.00823808,98699.0,98698.0,0.39932529]
[1737963613803,0.00823808,98699.0,98698.0,0.79339629]
[1737963614048,0.00823808,98699.0,98698.0,0.79639629]
[1737963614493,0.00164949,98714.0,98712.0,0.151957]
[1737963614623,0.00164949,98714.0,98712.0,1.33102482]
[1737963614834,0.00164949,98714.0,98712.0,2.19795282]
[1737963615218,0.00164949,98714.0,98712.0,2.01035782]
[1737963615407,0.00164949,98714.0,98712.0,2.00035782]
[1737963615567,0.00164949,98714.0,98712.0,2.02830134]
[1737963615971,0.00164949,98714.0,98712.0,2.0559134]
[1737963616141,0.0150033,98739.0,98727.0,0.15]
[1737963616503,0.0150033,98739.0,98733.0,0.368724]
[1737963616674,2.5,98756.0,98733.0,0.368724]
[1737963616675,2.5,98756.0,98752.0,0.301895]
[1737963616883,0.00285751,98753.0,98752.0,1.33096282]
[1737963617063,0.00300631,98753.0,98752.0,1.33096282]
[1737963617243,0.0002901,98753.0,98752.0,2.10440482]
[1737963617446,0.0002901,98753.0,98752.0,1.51189482]
[1737963617642,0.0002901,98753.0,98752.0,2.17592387]
[1737963617845,0.0002901,98753.0,98752.0,1.98186087]
[1737963618059,0.0002901,98753.0,98752.0,1.48332887]
[1737963618363,2.4902901,98756.0,98755.0,0.301891]
[1737963618616,2.4902901,98756.0,98755.0,0.83277829]
[1737963618820,2.4902901,98756.0,98755.0,0.60670629]
[1737963619054,2.49297343,98756.0,98755.0,0.52838429]
[1737963619805,2.49297343,98756.0,98755.0,0.58743629]
[1737963620005,2.49297343,98756.0,98755.0,0.55710812]
[1737963620632,2.49297343,98756.0,98755.0,0.39968312]
[1737963621036,2.49297343,98756.0,98755.0,0.40168312]
[1737963621332,2.49019947,98756.0,98755.0,0.40868312]
[1737963621495,2.64208847,98756.0,98755.0,0.00044483]
[1737963621860,2.64417672,98756.0,98755.0,0.00844483]
[1737963622089,2.79074765,98756.0,98755.0,0.00844483]
[1737963622290,2.79074765,98756.0,98708.0,0.0202243]
[1737963622291,2.74613645,98756.0,98707.0,0.93172053]
[1737963622494,0.151926,98732.0,98731.0,0.0001488]
[1737963622698,0.23211231,98732.0,98731.0,0.0001488]
[1737963622920,0.3776596,98732.0,98731.0,0.0001488]
[1737963623125,0.54836402,98732.0,98731.0,0.0001488]
[1737963623327,0.151981,98696.0,98695.0,0.00029736]
[1737963623527,0.230081,98696.0,98695.0,0.00029736]
[1737963623883,0.1263,98696.0,98695.0,0.00029736]
[1737963624085,0.151989,98691.0,98690.0,8.7e-07]
[1737963624290,0.152043,98656.0,98650.0,0.04]
[1737963624463,0.15412931,98656.0,98650.0,0.04]
[1737963624668,0.15412931,98656.0,98655.0,0.09075115]
[1737963624871,0.00208631,98656.0,98655.0,0.09075115]
[1737963625075,0.202682,98677.0,98655.0,0.18809844]
[1737963625271,0.152041,98657.0,98656.0,0.09734729]
[1737963625492,0.01987714,98678.0,98656.0,0.09734729]
[1737963625690,0.01854,98657.0,98656.0,0.09734729]
[1737963625892,0.01854,98657.0,98656.0,1.18177729]
[1737963626091,0.01854,98657.0,98656.0,1.19166464]
[1737963626295,2.53854097,98756.0,98686.0,0.3]
[1737963626470,0.00243403,98735.0,98712.0,0.09734729]
[1737963626693,0.202564,98734.0,98717.0,0.202599]
[1737963626899,0.00280246,98733.0,98720.0,0.15]
[1737963627138,0.151914,98740.0,98721.0,0.09734729]
[1737963627282,0.02005557,98755.0,98721.0,0.09734729]
[1737963627486,0.151933,98728.0,98721.0,0.09734729]
[1737963627837,0.00014858,98728.0,98721.0,0.09734729]
[1737963628046,0.00280246,98727.0,98721.0,0.24928929]
[1737963628309,0.00280246,98727.0,98726.0,0.151935]
[1737963628532,0.00280246,98727.0,98726.0,0.24928229]
[1737963628745,0.00280246,98727.0,98726.0,1.34003429]
[1737963628947,0.00014858,98728.0,98727.0,0.151934]
[1737963629181,0.00014858,98728.0,98727.0,0.99264729]
[1737963629381,0.00014858,98728.0,98727.0,0.67965329]
[1737963629591,0.00014858,98728.0,98727.0,0.66878929]
[1737963629794,0.00014858,98728.0,98727.0,0.39928129]
[1737963630032,0.00014858,98728.0,98727.0,0.52363329]
[1737963630801,0.00014858,98728.0,98727.0,1.79835382]
[1737963631007,0.00014858,98728.0,98727.0,1.77835382]
[1737963631209,0.00014858,98728.0,98727.0,1.47835382]
[1737963631453,0.00014858,98728.0,98727.0,1.48235382]
[1737963631592,0.00014858,98728.0,98727.0,1.47835382]
[1737963632015,0.00014858,98728.0,98727.0,1.48735382]
[1737963632191,0.00014858,98728.0,98727.0,1.47835382]
[1737963632395,0.00014858,98728.0,98727.0,1.45535382]
[1737963632640,0.00014858,98728.0,98727.0,1.34400182]
[1737963632840,0.00014858,98728.0,98727.0,2.36268882]
[1737963633014,0.00014858,98728.0,98727.0,1.88579682]
[1737963633213,0.00014858,98728.0,98727.0,1.76649682]
[1737963634027,0.00014858,98728.0,98727.0,1.76249682]
[1737963634235,2.49034097,98756.0,98755.0,0.301891]
[1737963634483,2.49034097,98756.0,98755.0,1.35395882]
[1737963634685,2.49347991,98756.0,98755.0,1.99300782]
[1737963634805,2.49347991,98756.0,98755.0,1.66595582]
[1737963635016,2.49347991,98756.0,98755.0,1.35395882]
[1737963635454,2.49347991,98756.0,98755.0,1.18606782]
[1737963635660,2.64536891,98756.0,98755.0,1.02906782]
[1737963635835,2.49347991,98756.0,98755.0,1.18195882]
[1737963636032,2.49347991,98756.0,98755.0,0.40523829]
[1737963636398,2.49347991,98756.0,98755.0,1.35495882]
[1737963636775,2.49347991,98756.0,98755.0,1.62374782]
[1737963637240,2.49034097,98756.0,98755.0,1.63386218]
[1737963637579,2.49349482,98756.0,98755.0,1.63386218]
[1737963637785,2.49349482,98756.0,98755.0,1.63886218]
[1737963638003,2.48626403,98756.0,98755.0,1.95286218]
[1737963638216,2.09023449,98756.0,98755.0,2.04436218]
[1737963638388,2.05276358,98756.0,98755.0,2.04936218]
[1737963638606,2.03251158,98756.0,98755.0,2.04436218]
[1737963638812,1.87898083,98756.0,98755.0,2.04436218]
[1737963639022,1.78437683,98756.0,98755.0,2.05236218]
[1737963639230,1.52611935,98756.0,98755.0,2.06916218]
[1737963639442,1.52611935,98756.0,98755.0,1.73436218]
[1737963639443,1.09616017,98756.0,98755.0,1.73436218]
[1737963639639,1.00626796,98756.0,98755.0,2.07815]
[1737963639897,0.0471,98820.0,98794.0,0.301831]
[1737963640143,0.0471,98820.0,98794.0,2.08338082]
[1737963640144,0.00029022,98795.0,98794.0,2.08338082]
[1737963640356,0.00029022,98795.0,98794.0,1.50852082]
[1737963641313,0.00029022,98795.0,98794.0,1.33089882]
[1737963641514,0.00029022,98795.0,98794.0,1.17906782]
[1737963641989,0.00029022,98795.0,98794.0,1.33989882]
[1737963642404,0.00029022,98795.0,98794.0,1.33289882]
[1737963642611,0.15211922,98795.0,98794.0,0.011]
[1737963642814,0.19921922,98795.0,98794.0,0.002]
[1737963643030,0.19921922,98795.0,98762.0,0.202505]
[1737963643031,0.151857,98777.0,98768.0,0.15187]
[1737963643230,0.151869,98770.0,98769.0,0.09734729]
[1737963643481,0.151854,98779.0,98771.0,0.151866]
[1737963643729,0.00391353,98770.0,98765.0,0.2025]
[1737963643950,0.00391353,98778.0,98766.0,0.09734729]
[1737963644071,0.00391353,98778.0,98736.0,0.02]
[1737963644072,0.02073934,98792.0,98748.0,0.93172053]
[1737963644310,0.151898,98750.0,98749.0,0.09734729]
[1737963644509,0.00390533,98750.0,98749.0,0.09734729]
[1737963644779,0.01037772,98795.0,98749.0,0.09734729]
[1737963644780,0.0471,98773.0,98771.0,0.004]
[1737963644909,0.151864,98772.0,98771.0,0.004]
[1737963645101,0.151904,98747.0,98734.0,0.2377]
[1737963645307,0.00388557,98746.0,98738.0,0.151916]
[1737963645512,0.151901,98748.0,98739.0,0.09734729]
[1737963645723,0.202509,98761.0,98734.0,0.2377]
[1737963645724,0.00385756,98747.0,98746.0,0.151904]
[1737963645922,0.00385756,98747.0,98746.0,0.24925129]
[1737963646198,0.00014872,98773.0,98754.0,0.405046]
[1737963646397,0.00014872,98773.0,98772.0,0.15]
[1737963646560,0.00014872,98773.0,98772.0,0.39921129]
[1737963646770,0.00014872,98773.0,98772.0,0.57298429]
[1737963646972,0.00014872,98773.0,98772.0,0.87298429]
[1737963647177,0.00014872,98773.0,98772.0,0.57298429]
[1737963647374,0.00014872,98773.0,98772.0,0.87298429]
[1737963647552,0.00014872,98773.0,98772.0,0.57298429]
[1737963647760,0.00014872,98773.0,98772.0,0.53221929]
[1737963647944,0.00014872,98773.0,98772.0,0.84246551]
[1737963648167,0.00014872,98773.0,98772.0,0.70945751]
[1737963648369,0.00014872,98773.0,98772.0,1.30746851]
[1737963648603,0.00014872,98773.0,98772.0,0.56671551]
[1737963648801,0.00014872,98773.0,98772.0,0.40821129]
[1737963649206,0.00014872,98773.0,98772.0,0.40221129]
[1737963649720,0.00029042,98773.0,98772.0,2.01789429]
[1737963649938,0.0001417,98773.0,98772.0,0.81812329]
[1737963650074,0.20238,98824.0,98794.0,0.301831]
[1737963650279,0.202391,98819.0,98794.0,1.56617482]
[1737963650502,0.004049,98823.0,98794.0,1.84650482]
[1737963650702,0.0471,98826.0,98794.0,1.84650482]
[1737963650921,0.249476,98826.0,98794.0,1.54650482]
[1737963651127,0.151808,98809.0,98794.0,1.44967771]
[1737963651282,0.202398,98816.0,98794.0,1.44368982]
[1737963651488,0.202398,98816.0,98794.0,1.33089882]
[1737963651697,0.151804,98812.0,98794.0,1.33089882]
[1737963651942,0.249476,98826.0,98794.0,1.33489882]
[1737963651943,0.151787,98823.0,98794.0,1.33489882]
[1737963652167,5e-07,98795.0,98794.0,1.67833782]
[1737963652368,5e-07,98795.0,98794.0,1.33089882]
[1737963652629,0.0150033,98839.0,98826.0,0.151781]
[1737963652829,0.00063733,98827.0,98826.0,1.18084882]
[1737963653498,0.00063733,98827.0,98826.0,1.33084882]
[1737963653696,0.01267421,98880.0,98833.0,0.02]
[1737963653697,8e-07,98850.0,98833.0,0.02]
[1737963653918,0.0009608,98855.0,98854.0,0.301738]
[1737963654265,0.00110948,98855.0,98854.0,1.99549982]
[1737963654464,0.00110948,98855.0,98854.0,1.56780582]
[1737963654826,0.01267421,98880.0,98854.0,1.26606782]
[1737963655166,0.01267421,98880.0,98856.0,0.15]
[1737963655369,0.151709,98873.0,98859.0,0.09734729]
[1737963655557,0.01267421,98880.0,98859.0,0.24734729]
[1737963655753,0.151717,98869.0,98859.0,0.24734729]
[1737963655958,0.151723,98865.0,98859.0,0.09658787]
[1737963656168,0.0772,98879.0,98859.0,0.09658787]
[1737963656341,0.198729,98860.0,98859.0,0.09658787]
[1737963656891,0.198729,98860.0,98809.0,0.01002492]
[1737963656892,0.047,98855.0,98809.0,0.01002492]
[1737963657086,0.1102,98856.0,98810.0,0.09734729]
[1737963657087,0.023,98847.0,98810.0,0.09734729]
[1737963657295,0.249326,98851.0,98815.0,0.151798]
[1737963657495,0.047,98851.0,98828.0,0.09734729]
[1737963657717,0.202326,98850.0,98828.0,0.09734729]
[1737963657840,0.00388536,98850.0,98828.0,0.09734729]
[1737963658232,0.00388536,98850.0,98814.0,0.151799]
[1737963658233,0.354074,98849.0,98814.0,0.151799]
[1737963658439,0.151784,98825.0,98817.0,0.151795]
[1737963658642,0.151792,98820.0,98818.0,0.09734729]
[1737963658857,0.151788,98822.0,98818.0,0.09734729]
[1737963659160,0.047,98843.0,98828.0,0.001]
[1737963659393,0.151777,98829.0,98828.0,0.008]
[1737963659591,0.151777,98829.0,98828.0,0.10534729]
[1737963659788,0.151777,98829.0,98828.0,0.10434729]
[1737963660016,0.202343,98842.0,98829.0,0.15]
[1737963660351,0.151774,98831.0,98830.0,0.09734729]
[1737963660552,0.151777,98829.0,98813.0,0.202402]
[1737963660763,0.151782,98826.0,98817.0,0.151794]
[1737963660989,0.02071449,98856.0,98825.0,0.09734729]
[1737963661174,0.047,98866.0,98846.0,0.09734729]
[1737963661382,0.03121421,98880.0,98863.0,0.09734729]
[1737963661504,0.141735,98856.0,98855.0,0.15]
[1737963661705,0.151735,98856.0,98855.0,0.24734729]
[1737963662025,0.05170806,98880.0,98855.0,0.24734729]
[1737963662214,0.05170806,98880.0,98856.0,0.09734729]
[1737963662589,0.202267,98879.0,98845.0,0.93172053]
[1737963662811,0.05170806,98880.0,98846.0,0.09734729]
[1737963662986,0.202294,98866.0,98846.0,0.09734729]
[1737963663297,0.151713,98871.0,98860.0,0.151728]
[1737963663503,0.03321421,98880.0,98875.0,0.151706]
[1737963663660,0.03321421,98880.0,98876.0,0.09734729]
[1737963664302,0.03321421,98880.0,98877.0,0.151702]
[1737963664542,0.03094621,98880.0,98878.0,0.09734729]
[1737963664774,0.1517,98879.0,98878.0,0.09734729]
[1737963664987,0.1517,98879.0,98870.0,0.15]
[1737963664988,0.151714,98870.0,98869.0,0.93172053]
[1737963665239,0.03194621,98880.0,98859.0,0.93172053]
[1737963665468,0.0772,98879.0,98860.0,0.09734729]
[1737963665620,0.15172,98867.0,98860.0,0.09734729]
[1737963665815,0.0772,98879.0,98839.0,0.93172053]
[1737963665816,0.00370992,98878.0,98839.0,0.93172053]
[1737963666018,0.151751,98846.0,98845.0,0.00014868]
[1737963666219,0.0475,98878.0,98845.0,0.09749597]
[1737963666419,0.151749,98847.0,98846.0,0.09734729]
[1737963666633,0.023,98877.0,98846.0,0.09734729]
[1737963666790,0.023,98875.0,98846.0,0.09734729]
[1737963667020,0.151749,98847.0,98846.0,0.09734729]
[1737963667228,0.151751,98846.0,98845.0,0.00014868]
[1737963667426,0.222251,98846.0,98845.0,0.00014868]
[1737963667718,0.30124904,98846.0,98845.0,0.00014868]
[1737963667924,0.27824904,98846.0,98845.0,0.00014868]
[1737963668864,0.28024904,98846.0,98845.0,0.00014868]
[1737963669123,0.05319804,98846.0,98845.0,0.24924797]
[1737963669330,0.05119804,98846.0,98845.0,0.24924797]
[1737963669530,0.05319804,98846.0,98845.0,0.09749597]
[1737963669748,0.20694904,98846.0,98845.0,0.00014868]
[1737963670116,0.00769804,98846.0,98845.0,0.09749597]
[1737963670394,0.004,98846.0,98845.0,0.24924797]
[1737963670754,0.155751,98846.0,98845.0,0.09749597]
[1737963670957,0.15715537,98846.0,98845.0,0.09749597]
[1737963671155,0.15475323,98846.0,98845.0,0.09749597]
[1737963671740,0.15475323,98846.0,98845.0,0.00014868]
[1737963671963,0.17775323,98846.0,98845.0,0.00014868]
[1737963672166,0.19761716,98846.0,98845.0,0.00014868]
[1737963672343,0.27291716,98846.0,98845.0,0.00014868]
[1737963672928,0.27291716,98846.0,98845.0,0.00114868]
[1737963672929,0.27391716,98846.0,98845.0,0.00114868]
[1737963673106,0.29841716,98846.0,98845.0,0.00114868]
[1737963673313,0.29841716,98846.0,98798.0,0.202433]
[1737963673314,0.151777,98829.0,98795.0,0.93172053]
[1737963673516,0.151777,98829.0,98828.0,0.479763]
[1737963673718,0.02,98815.0,98771.0,0.93172053]
[1737963673872,0.02,98815.0,98755.0,0.202521]
[1737963673873,0.151863,98773.0,98772.0,0.09734729]
[1737963674275,0.15526737,98773.0,98772.0,0.09734729]
[1737963674479,0.20249,98771.0,98753.0,0.00055794]
[1737963674690,0.00340437,98773.0,98754.0,0.09734729]
[1737963674906,0.0753,98787.0,98755.0,0.20483]
[1737963675099,0.202461,98784.0,98771.0,0.151864]
[1737963675332,0.0205484,98794.0,98772.0,0.09784312]
[1737963675490,0.001,98773.0,98772.0,0.24784312]
[1737963675694,0.001,98773.0,98772.0,0.24771848]
[1737963675927,0.0753,98801.0,98773.0,0.15]
[1737963676161,0.02,98841.0,98773.0,0.15]
[1737963676162,0.07517531,98820.0,98782.0,0.15]
[1737963676301,0.00632925,98805.0,98797.0,0.151825]
[1737963676521,0.00632925,98805.0,98782.0,0.93172053]
[1737963676794,0.151846,98784.0,98783.0,0.09734729]
[1737963677025,0.20242,98804.0,98783.0,0.09734729]
[1737963677227,0.00632925,98805.0,98783.0,0.09734729]
[1737963677228,0.00460722,98784.0,98783.0,0.09734729]
[1737963677429,0.00632925,98805.0,98783.0,0.09734729]
[1737963677634,0.00632925,98805.0,98781.0,0.09014698]
[1737963677635,0.00632925,98805.0,98784.0,0.09734729]
[1737963677838,0.202425,98802.0,98784.0,0.09734729]
[1737963678023,0.151843,98787.0,98784.0,0.09734729]
[1737963678285,0.20245,98790.0,98784.0,0.09734729]
[1737963678286,0.202429,98800.0,98784.0,0.09734729]
[1737963678454,0.151849,98782.0,98781.0,0.09014698]
[1737963678794,0.1564635,98782.0,98781.0,0.09014698]
[1737963679824,0.1606294,98782.0,98781.0,0.09014698]
[1737963680042,0.151863,98773.0,98772.0,0.00037119]
[1737963680423,0.15647016,98773.0,98772.0,0.00037119]
[1737963680636,0.151892,98754.0,98753.0,0.00055794]
[1737963680969,0.228292,98754.0,98753.0,0.00070666]
[1737963681177,0.23288642,98754.0,98753.0,0.00014872]
[1737963681590,0.00459442,98754.0,98753.0,0.09749601]
[1737963681807,0.0764,98781.0,98754.0,0.15]
[1737963682044,0.0051659,98782.0,98764.0,0.09734729]
[1737963682245,0.0031659,98782.0,98781.0,0.301851]
[1737963682442,0.0031659,98782.0,98781.0,0.58343629]
[1737963682648,0.00103423,98797.0,98796.0,0.301828]
[1737963682855,0.00103423,98797.0,98796.0,0.63687529]
[1737963683706,0.0764,98853.0,98808.0,0.15]
[1737963683913,0.00049522,98846.0,98830.0,0.15]
[1737963684124,0.00049522,98846.0,98831.0,0.09734729]
[1737963684341,0.00316453,98841.0,98796.0,0.01023735]
[1737963684548,0.00316453,98841.0,98793.0,0.202442]
[1737963684549,0.10051182,98841.0,98809.0,0.09734729]
[1737963684754,0.00316453,98841.0,98812.0,0.15]
[1737963684957,0.202351,98838.0,98815.0,0.15]
[1737963685274,0.202351,98838.0,98829.0,0.00057606]
[1737963685437,0.151775,98830.0,98829.0,0.00057606]
[1737963685868,0.202351,98838.0,98829.0,0.00057606]
[1737963686058,0.00049522,98846.0,98829.0,0.00057606]
[1737963686059,0.01854,98830.0,98829.0,0.00057606]
[1737963686275,0.01854,98830.0,98829.0,0.39970035]
[1737963686838,0.170315,98830.0,98829.0,0.09792335]
[1737963687160,0.170315,98830.0,98829.0,0.00057606]
[1737963687361,0.01854,98830.0,98829.0,0.00057606]
[1737963687589,0.01854,98830.0,98829.0,1.64829788]
[1737963687768,0.01854,98830.0,98829.0,1.64221888]
[1737963688620,0.01854,98830.0,98829.0,1.50356588]
[1737963688823,0.01954,98830.0,98829.0,2.43912288]
[1737963688994,0.01954,98830.0,98829.0,1.33142088]
[1737963689196,0.01854,98830.0,98829.0,1.79924088]
[1737963689335,0.01854,98830.0,98829.0,1.80524088]
[1737963689533,0.01854,98830.0,98829.0,1.80624088]
[1737963689794,0.01854,98830.0,98829.0,1.80024088]
[1737963689994,0.01604758,98830.0,98829.0,1.80024088]
[1737963690904,0.01604758,98830.0,98829.0,1.79984088]
[1737963691334,0.01604758,98830.0,98829.0,1.80484088]
[1737963691537,0.01604758,98830.0,98829.0,1.79884088]
[1737963691738,0.01604758,98830.0,98829.0,1.79984088]
[1737963692177,0.0155113,98830.0,98829.0,1.79984088]
[1737963692352,0.0155113,98830.0,98829.0,1.80384088]
[1737963692559,0.0155113,98830.0,98829.0,1.80484088]
[1737963694611,0.0155113,98830.0,98829.0,1.80384088]
[1737963695007,0.0155113,98830.0,98829.0,1.79984088]
[1737963695377,0.0155113,98830.0,98829.0,1.80284088]
[1737963695576,0.0155113,98830.0,98829.0,1.79884088]
[1737963696013,0.0155113,98830.0,98829.0,2.10284088]
[1737963697001,0.0155113,98830.0,98829.0,2.09884088]
[1737963697847,0.0155113,98830.0,98829.0,1.79884088]
[1737963698107,0.0155113,98830.0,98829.0,1.89097015]
[1737963698489,0.0001414,98856.0,98845.0,0.301752]
[1737963698668,0.0001414,98856.0,98845.0,2.21927382]
[1737963698870,0.0001414,98856.0,98845.0,2.27821082]
[1737963699780,0.0001414,98856.0,98845.0,2.28021082]
[1737963700596,0.0001414,98856.0,98855.0,0.301737]
[1737963700793,0.0001414,98856.0,98855.0,2.62133382]
[1737963700987,0.00028989,98856.0,98855.0,2.54511182]
[1737963701183,0.00028989,98856.0,98855.0,2.38289682]
[1737963701688,0.00028989,98856.0,98855.0,1.81784382]
[1737963701921,0.00028989,98856.0,98855.0,1.52761732]
[1737963702331,0.00028989,98856.0,98855.0,1.82761732]
[1737963702905,0.00028989,98856.0,98855.0,1.53261732]
[1737963703690,0.00028989,98856.0,98855.0,1.34057832]
[1737963703901,0.00028989,98856.0,98855.0,1.73682532]
[1737963704503,0.00028989,98856.0,98855.0,1.74882532]
[1737963704953,0.00028989,98856.0,98855.0,1.04784132]
[1737963705205,0.00028989,98856.0,98855.0,1.03806782]
[1737963705551,0.00028989,98856.0,98855.0,1.04106782]
[1737963705961,0.00028989,98856.0,98855.0,1.02906782]
[1737963706172,0.00028989,98856.0,98855.0,0.94072053]
[1737963706395,0.00433787,98856.0,98855.0,1.38736882]
[1737963706568,0.00028989,98856.0,98855.0,1.33616882]
[1737963706776,0.00028989,98856.0,98855.0,1.06408453]
[1737963707122,0.00028989,98856.0,98855.0,0.93672053]
[1737963707323,0.00028989,98856.0,98855.0,1.18580482]
[1737963707524,0.00028989,98856.0,98855.0,1.18280482]
[1737963707794,0.00028989,98856.0,98855.0,1.03406782]
[1737963708155,0.15202489,98856.0,98855.0,0.005]
[1737963708362,0.2319531,98856.0,98855.0,0.005]
[1737963708768,0.33934374,98856.0,98855.0,0.005]
[1737963708977,0.33934374,98856.0,98847.0,0.09012927]
[1737963708978,0.151748,98848.0,98847.0,0.09012927]
[1737963709177,0.15577614,98848.0,98847.0,0.09012927]
[1737963709382,0.00402814,98848.0,98847.0,0.09012927]
[1737963709604,0.07618989,98856.0,98855.0,0.151737]
[1737963709803,0.00028989,98856.0,98855.0,0.24908429]
[1737963710006,0.00384767,98856.0,98855.0,0.39908429]
[1737963710553,0.00028989,98856.0,98855.0,0.39908429]
[1737963711571,0.00028989,98856.0,98855.0,0.24908429]
[1737963711979,0.00228989,98856.0,98855.0,0.24908429]
[1737963712198,0.00228989,98856.0,98855.0,0.57467129]
[1737963712414,0.00528989,98856.0,98855.0,0.39908429]
[1737963712861,0.00528989,98856.0,98855.0,0.54598429]
[1737963713180,0.00228989,98856.0,98855.0,0.59864329]
[1737963713382,0.00228989,98856.0,98855.0,0.54776829]
[1737963713608,0.00428989,98856.0,98855.0,0.54776829]
[1737963713827,0.00028989,98856.0,98855.0,0.54776829]
[1737963714029,0.00228989,98856.0,98855.0,0.54776829]
[1737963714286,0.00428989,98856.0,98855.0,0.54776829]
[1737963714629,0.00228989,98856.0,98855.0,1.47948882]
[1737963715141,0.00428989,98856.0,98855.0,1.47948882]
[1737963715548,0.00228989,98856.0,98855.0,1.47948882]
[1737963715730,0.00028989,98856.0,98855.0,1.47948882]
[1737963716130,0.00128989,98856.0,98855.0,1.47948882]
[1737963716561,0.00028989,98856.0,98855.0,1.47948882]
[1737963716759,0.00028989,98856.0,98855.0,1.48848882]
[1737963716962,0.01000813,98899.0,98856.0,0.15]
[1737963717161,0.450238,98903.0,98859.0,0.09734729]
[1737963717162,0.20222,98902.0,98859.0,0.09734729]
[1737963717363,0.00362752,98896.0,98878.0,0.15]
[1737963717570,0.012675,98896.0,98879.0,0.09734729]
[1737963717767,0.01589782,98896.0,98879.0,0.09734729]
[1737963717944,0.01589782,98896.0,98880.0,0.151698]
[1737963718146,0.00362752,98895.0,98880.0,0.151698]
[1737963718935,0.01977808,98893.0,98881.0,0.151696]
[1737963719139,0.01977808,98893.0,98879.0,0.09734729]